[Event "*** Titled Tuesday Blitz"]
[Site "Chess.com"]
[Date "2021.02.16"]
[Round "1"]
[White "johnathan113"]
[Black "harlem4brew"]
[Result "1-0"]
[WhiteElo "2609"]
[BlackElo "2308"]
[TimeControl "180+1"]
[EndTime "10:07:41 PST"]
[Termination "johnathan113 won by checkmate"]

1. e4 {[%clk 0:03:00.5]} 1... c5 {[%clk 0:02:59.8]} 2. Nf3 {[%clk 0:03:00.1]}
2... e6 {[%clk 0:02:59.5]} 3. d4 {[%clk 0:03:00.1]} 3... cxd4 {[%clk 0:03:00.4]}
4. Nxd4 {[%clk 0:03:01]} 4... Nf6 {[%clk 0:02:59.6]} 5. Nc3 {[%clk 0:03:01.2]}
5... d6 {[%clk 0:02:59.5]} 6. g4 {[%clk 0:02:57.8]} 6... Nc6 {[%clk 0:02:55.4]}
7. g5 {[%clk 0:02:54.5]} 7... Nd7 {[%clk 0:02:53.2]} 8. Be3 {[%clk 0:02:54.9]}
8... a6 {[%clk 0:02:47.1]} 9. h4 {[%clk 0:02:53.5]} 9... Nxd4 {[%clk 0:02:44.2]}
10. Qxd4 {[%clk 0:02:54.4]} 10... b5 {[%clk 0:02:43.9]} 11. O-O-O {[%clk
0:02:49.5]} 11... Bb7 {[%clk 0:02:42.9]} 12. f4 {[%clk 0:02:49.4]} 12... Rc8
{[%clk 0:02:38.3]} 13. h5 {[%clk 0:02:40.1]} 13... e5 {[%clk 0:02:23.2]} 14. Qd2
{[%clk 0:02:33.1]} 14... Qa5 {[%clk 0:02:08.2]} 15. Bh3 {[%clk 0:02:16.8]} 15...
b4 {[%clk 0:01:55.2]} 16. Nd5 {[%clk 0:02:16.7]} 16... Qxa2 {[%clk 0:01:30.6]}
17. Qxb4 {[%clk 0:02:16.7]} 17... Bxd5 {[%clk 0:01:22.8]} 18. exd5 {[%clk
0:02:17.6]} 18... Qc4 {[%clk 0:01:11.5]} 19. Qd2 {[%clk 0:01:55.1]} 19... Nc5
{[%clk 0:01:08.3]} 20. Bxc5 {[%clk 0:01:48.4]} 20... Rxc5 {[%clk 0:01:08.1]} 21.
fxe5 {[%clk 0:01:45.3]} 21... dxe5 {[%clk 0:01:06.3]} 22. d6 {[%clk 0:01:36]}
22... Qa4 {[%clk 0:01:05.9]} 23. c3 {[%clk 0:00:54]} 23... Qa1+ {[%clk
0:01:04.6]} 24. Kc2 {[%clk 0:00:53]} 24... Qa4+ {[%clk 0:01:05.3]} 25. Kb1
{[%clk 0:00:48.8]} 25... Qe4+ {[%clk 0:01:02.1]} 26. Qd3 {[%clk 0:00:44]} 26...
Qxd3+ {[%clk 0:01:02.2]} 27. Rxd3 {[%clk 0:00:44.9]} 27... Rc6 {[%clk
0:01:01.9]} 28. d7+ {[%clk 0:00:41.9]} 28... Kd8 {[%clk 0:01:01.7]} 29. Rf1
{[%clk 0:00:38.9]} 29... f6 {[%clk 0:01:00.4]} 30. Bg2 {[%clk 0:00:29.2]} 30...
Rd6 {[%clk 0:00:57.3]} 31. Rxd6 {[%clk 0:00:28.6]} 31... Bxd6 {[%clk 0:00:58.2]}
32. gxf6 {[%clk 0:00:20.1]} 32... gxf6 {[%clk 0:00:57.5]} 33. Rxf6 {[%clk
0:00:21]} 33... Kxd7 {[%clk 0:00:58.3]} 34. Be4 {[%clk 0:00:14.3]} 34... Rf8
{[%clk 0:00:57.8]} 35. Rxf8 {[%clk 0:00:10]} 35... Bxf8 {[%clk 0:00:58.7]} 36.
Bxh7 {[%clk 0:00:10.7]} 36... Bh6 {[%clk 0:00:59]} 37. Kc2 {[%clk 0:00:10.8]}
37... Kc6 {[%clk 0:00:58.9]} 38. Kd3 {[%clk 0:00:10.9]} 38... Kd5 {[%clk
0:00:59]} 39. Bg8+ {[%clk 0:00:10.3]} 39... Kd6 {[%clk 0:00:58.8]} 40. b4 {[%clk
0:00:08.1]} 40... Bf4 {[%clk 0:00:55.3]} 41. Bc4 {[%clk 0:00:05.6]} 41... Bg5
{[%clk 0:00:53.4]} 42. Bxa6 {[%clk 0:00:05.3]} 42... Ke6 {[%clk 0:00:52]} 43.
Bb7 {[%clk 0:00:03.7]} 43... Kf5 {[%clk 0:00:51.3]} 44. Be4+ {[%clk 0:00:04.3]}
44... Kg4 {[%clk 0:00:51.5]} 45. Bg6 {[%clk 0:00:05.2]} 45... Kf4 {[%clk
0:00:51.4]} 46. b5 {[%clk 0:00:06.1]} 46... Bd8 {[%clk 0:00:50.8]} 47. Kc4
{[%clk 0:00:06]} 47... Bb6 {[%clk 0:00:50.2]} 48. h6 {[%clk 0:00:06.2]} 48...
Kg5 {[%clk 0:00:48.9]} 49. h7 {[%clk 0:00:06.5]} 49... Kxg6 {[%clk 0:00:49.8]}
50. h8=Q {[%clk 0:00:07]} 50... e4 {[%clk 0:00:49.6]} 51. Qe8+ {[%clk
0:00:07.4]} 51... Kf5 {[%clk 0:00:50.1]} 52. Qf7+ {[%clk 0:00:06.5]} 52... Ke5
{[%clk 0:00:49.5]} 53. Qe7+ {[%clk 0:00:06.1]} 53... Kf4 {[%clk 0:00:49.6]} 54.
Qd6+ {[%clk 0:00:06.1]} 54... Ke3 {[%clk 0:00:49.4]} 55. Qxb6+ {[%clk 0:00:07]}
55... Kd2 {[%clk 0:00:49.1]} 56. Qd4+ {[%clk 0:00:07.3]} 56... Kc2 {[%clk
0:00:47.8]} 57. Qxe4+ {[%clk 0:00:07]} 57... Kb2 {[%clk 0:00:48.7]} 58. b6
{[%clk 0:00:06.9]} 58... Ka3 {[%clk 0:00:49.6]} 59. b7 {[%clk 0:00:07.8]} 59...
Ka4 {[%clk 0:00:49.4]} 60. b8=Q {[%clk 0:00:07.1]} 60... Ka3 {[%clk 0:00:50.3]}
61. Qea8# {[%clk 0:00:06.9]} 1-0

[Event "*** Titled Tuesday Blitz"]
[Site "Chess.com"]
[Date "2021.02.16"]
[Round "1"]
[White "jd001"]
[Black "vaishali2001"]
[Result "0-1"]
[WhiteElo "2273"]
[BlackElo "2583"]
[TimeControl "180+1"]
[EndTime "10:07:42 PST"]
[Termination "vaishali2001 won by resignation"]

1. d4 {[%clk 0:03:00.9]} 1... d5 {[%clk 0:02:57.2]} 2. c4 {[%clk 0:02:59.4]}
2... Nc6 {[%clk 0:02:56.7]} 3. Nf3 {[%clk 0:02:56.4]} 3... Bg4 {[%clk
0:02:51.8]} 4. Nc3 {[%clk 0:02:46.4]} 4... e6 {[%clk 0:02:33.3]} 5. Bf4 {[%clk
0:02:36.5]} 5... Nf6 {[%clk 0:02:24.5]} 6. e3 {[%clk 0:02:33.4]} 6... Bd6 {[%clk
0:02:24.4]} 7. Bg3 {[%clk 0:02:32.4]} 7... O-O {[%clk 0:02:23.6]} 8. cxd5 {[%clk
0:02:31.1]} 8... exd5 {[%clk 0:02:23.2]} 9. Be2 {[%clk 0:02:30.6]} 9... Ne7
{[%clk 0:02:21.7]} 10. O-O {[%clk 0:02:28.8]} 10... Bxg3 {[%clk 0:02:20.5]} 11.
hxg3 {[%clk 0:02:28]} 11... c6 {[%clk 0:02:21.1]} 12. Ne5 {[%clk 0:02:27.4]}
12... Bxe2 {[%clk 0:02:20.6]} 13. Qxe2 {[%clk 0:02:26.9]} 13... Nf5 {[%clk
0:02:21.3]} 14. Rab1 {[%clk 0:02:25.7]} 14... Nd6 {[%clk 0:02:17]} 15. a3 {[%clk
0:02:21]} 15... Nfe4 {[%clk 0:02:06.6]} 16. Nxe4 {[%clk 0:02:17]} 16... Nxe4
{[%clk 0:02:07.5]} 17. Rfc1 {[%clk 0:02:11.6]} 17... Re8 {[%clk 0:02:01.2]} 18.
b4 {[%clk 0:02:10.5]} 18... a6 {[%clk 0:01:51.4]} 19. a4 {[%clk 0:02:07.9]}
19... Qd6 {[%clk 0:01:40.9]} 20. b5 {[%clk 0:02:01.7]} 20... axb5 {[%clk
0:01:40.2]} 21. axb5 {[%clk 0:02:01.3]} 21... c5 {[%clk 0:01:40.6]} 22. Qh5
{[%clk 0:01:12.9]} 22... Qf6 {[%clk 0:01:23.6]} 23. Nf3 {[%clk 0:01:01.9]} 23...
cxd4 {[%clk 0:00:40.7]} 24. exd4 {[%clk 0:01:01.3]} 24... Qd6 {[%clk 0:00:32.2]}
25. Rc5 {[%clk 0:00:58.5]} 25... Nxc5 {[%clk 0:00:31.1]} 26. dxc5 {[%clk
0:00:57.2]} 26... Qxc5 {[%clk 0:00:32]} 27. Ng5 {[%clk 0:00:56.9]} 27... h6
{[%clk 0:00:24.5]} 28. Qxf7+ {[%clk 0:00:56.5]} 28... Kh8 {[%clk 0:00:24.4]} 29.
Nf3 {[%clk 0:00:50.6]} 29... Re2 {[%clk 0:00:22]} 30. Nh4 {[%clk 0:00:44]} 30...
Rae8 {[%clk 0:00:16.5]} 31. Rf1 {[%clk 0:00:39.1]} 31... b6 {[%clk 0:00:12.3]}
32. Ng6+ {[%clk 0:00:39.1]} 32... Kh7 {[%clk 0:00:12.3]} 33. Nf4 {[%clk
0:00:38.8]} 33... Re1 {[%clk 0:00:10.1]} 34. Qg6+ {[%clk 0:00:37.1]} 34... Kh8
{[%clk 0:00:09.4]} 35. Rxe1 {[%clk 0:00:37.2]} 35... Rxe1+ {[%clk 0:00:10.3]}
36. Kh2 {[%clk 0:00:37.2]} 36... Qxf2 {[%clk 0:00:07.5]} 37. Ne6 {[%clk
0:00:31.6]} 37... Qg1+ {[%clk 0:00:07.1]} 38. Kh3 {[%clk 0:00:31.1]} 38... Qh1+
{[%clk 0:00:07]} 39. Kg4 {[%clk 0:00:31.3]} 39... Re4+ {[%clk 0:00:07.1]} 40.
Nf4 {[%clk 0:00:29.7]} 40... Qd1+ {[%clk 0:00:06.9]} 41. Kh4 {[%clk 0:00:29.4]}
41... Qh1+ {[%clk 0:00:06.3]} 42. Kg4 {[%clk 0:00:29.7]} 42... Qd1+ {[%clk
0:00:04.7]} 43. Kh4 {[%clk 0:00:29.4]} 43... Qd4 {[%clk 0:00:05.3]} 44. Kh3
{[%clk 0:00:26.7]} 44... Qf6 {[%clk 0:00:05.2]} 45. Qg4 {[%clk 0:00:26.2]} 45...
d4 {[%clk 0:00:05]} 46. Qc8+ {[%clk 0:00:25.9]} 46... Kh7 {[%clk 0:00:05.3]} 47.
Qc2 {[%clk 0:00:25.1]} 47... Qf5+ {[%clk 0:00:05.7]} 48. Kh2 {[%clk 0:00:24.1]}
48... Rxf4 {[%clk 0:00:06.1]} 49. gxf4 {[%clk 0:00:23.9]} 49... Qxc2 {[%clk
0:00:05.6]} 50. f5 {[%clk 0:00:23.4]} 50... d3 {[%clk 0:00:06.5]} 51. Kg3 {[%clk
0:00:23.3]} 51... d2 {[%clk 0:00:06.8]} 52. Kf3 {[%clk 0:00:24]} 52... Qc3+
{[%clk 0:00:07.4]} 0-1

[Event "*** Titled Tuesday Blitz"]
[Site "Chess.com"]
[Date "2021.02.16"]
[Round "1"]
[White "fabianvivasz"]
[Black "Frolyanov_D"]
[Result "1-0"]
[WhiteElo "2371"]
[BlackElo "2642"]
[TimeControl "180+1"]
[EndTime "10:07:44 PST"]
[Termination "fabianvivasz won by resignation"]

1. e4 {[%clk 0:02:58.6]} 1... c5 {[%clk 0:02:59]} 2. Nc3 {[%clk 0:02:57.8]} 2...
e6 {[%clk 0:02:58.6]} 3. Nf3 {[%clk 0:02:57.3]} 3... a6 {[%clk 0:02:58.2]} 4. d4
{[%clk 0:02:57.8]} 4... cxd4 {[%clk 0:02:58.5]} 5. Nxd4 {[%clk 0:02:58.7]} 5...
Qc7 {[%clk 0:02:57.6]} 6. Bd3 {[%clk 0:02:58.6]} 6... b5 {[%clk 0:02:56.6]} 7.
O-O {[%clk 0:02:56.2]} 7... Bb7 {[%clk 0:02:54.4]} 8. Re1 {[%clk 0:02:48.9]}
8... d6 {[%clk 0:02:53.9]} 9. a4 {[%clk 0:02:33.4]} 9... b4 {[%clk 0:02:53.3]}
10. Na2 {[%clk 0:02:33.6]} 10... d5 {[%clk 0:02:40.5]} 11. Qf3 {[%clk
0:02:11.6]} 11... Nf6 {[%clk 0:02:34.6]} 12. e5 {[%clk 0:02:12.5]} 12... Ne4
{[%clk 0:02:32.7]} 13. Bf4 {[%clk 0:01:34.9]} 13... Nd7 {[%clk 0:02:31.4]} 14.
c4 {[%clk 0:01:12.5]} 14... g5 {[%clk 0:02:18.1]} 15. cxd5 {[%clk 0:01:08.9]}
15... exd5 {[%clk 0:02:00.2]} 16. Bg3 {[%clk 0:00:30.8]} 16... Nxg3 {[%clk
0:01:59.9]} 17. Qxg3 {[%clk 0:00:29.8]} 17... Nc5 {[%clk 0:01:52.1]} 18. Rac1
{[%clk 0:00:22.1]} 18... Qb6 {[%clk 0:01:29.8]} 19. Nf5 {[%clk 0:00:13.4]} 19...
Ne6 {[%clk 0:01:26.9]} 20. Nd6+ {[%clk 0:00:11.6]} 20... Bxd6 {[%clk 0:01:25.3]}
21. exd6 {[%clk 0:00:12.5]} 21... Rd8 {[%clk 0:01:18]} 22. Qxg5 {[%clk
0:00:08.3]} 22... Qxd6 {[%clk 0:01:14.3]} 23. Qf6 {[%clk 0:00:06.5]} 23... Rf8
{[%clk 0:01:07.4]} 24. Bf5 {[%clk 0:00:06.7]} 24... Qe7 {[%clk 0:00:59.3]} 25.
Qe5 {[%clk 0:00:04.9]} 25... d4 {[%clk 0:00:47.7]} 26. Rc7 {[%clk 0:00:04.7]}
26... Rd7 {[%clk 0:00:43.2]} 27. Rxd7 {[%clk 0:00:03.4]} 27... Qxd7 {[%clk
0:00:43.5]} 28. Nxb4 {[%clk 0:00:03.9]} 28... Rg8 {[%clk 0:00:37.7]} 29. f3
{[%clk 0:00:03.4]} 29... Bxf3 {[%clk 0:00:36.5]} 30. Bh3 {[%clk 0:00:03]} 30...
Qb7 {[%clk 0:00:24]} 31. Bxe6 {[%clk 0:00:03.1]} 31... Kf8 {[%clk 0:00:16.8]}
32. Bd5 {[%clk 0:00:02.7]} 32... Rxg2+ {[%clk 0:00:15.4]} 33. Kf1 {[%clk
0:00:02.6]} 33... Bxd5 {[%clk 0:00:15]} 34. Nxd5 {[%clk 0:00:03.3]} 34... Qxb2
{[%clk 0:00:04.4]} 35. Qh8+ {[%clk 0:00:03.2]} 35... Rg8 {[%clk 0:00:04.4]} 36.
Re8+ {[%clk 0:00:03.6]} 36... Kxe8 {[%clk 0:00:04.6]} 37. Qxg8+ {[%clk
0:00:04.2]} 37... Kd7 {[%clk 0:00:05.1]} 38. Qxf7+ {[%clk 0:00:04.5]} 38... Kd6
{[%clk 0:00:05.6]} 39. Nf4 {[%clk 0:00:03]} 39... Qa1+ {[%clk 0:00:05.1]} 40.
Kf2 {[%clk 0:00:03.2]} 40... Qxa4 {[%clk 0:00:05.2]} 41. Qe6+ {[%clk 0:00:02.8]}
41... Kc7 {[%clk 0:00:04.4]} 42. Nd5+ {[%clk 0:00:02.4]} 42... Kb8 {[%clk
0:00:04.5]} 43. Qb6+ {[%clk 0:00:02.9]} 1-0

[Event "*** Titled Tuesday Blitz"]
[Site "Chess.com"]
[Date "2021.02.16"]
[Round "1"]
[White "ChronicUnhappiness"]
[Black "elextranjero00"]
[Result "0-1"]
[WhiteElo "2309"]
[BlackElo "2610"]
[TimeControl "180+1"]
[EndTime "10:07:44 PST"]
[Termination "elextranjero00 won on time"]

1. d4 {[%clk 0:03:00.4]} 1... Nf6 {[%clk 0:02:59.3]} 2. c4 {[%clk 0:03:00.2]}
2... c5 {[%clk 0:02:59.5]} 3. d5 {[%clk 0:02:59.9]} 3... g6 {[%clk 0:02:59.9]}
4. Nc3 {[%clk 0:02:59.5]} 4... d6 {[%clk 0:02:59.8]} 5. e4 {[%clk 0:02:59.1]}
5... Bg7 {[%clk 0:03:00.2]} 6. Nf3 {[%clk 0:02:58.2]} 6... O-O {[%clk
0:02:59.5]} 7. Bd3 {[%clk 0:02:44.7]} 7... e6 {[%clk 0:02:50.1]} 8. dxe6 {[%clk
0:02:44.2]} 8... Bxe6 {[%clk 0:02:45.5]} 9. h3 {[%clk 0:02:41.2]} 9... Nc6
{[%clk 0:02:45.4]} 10. O-O {[%clk 0:02:41]} 10... Nd7 {[%clk 0:02:38.8]} 11. Nd5
{[%clk 0:02:27.1]} 11... Nde5 {[%clk 0:02:31.9]} 12. Nxe5 {[%clk 0:02:24.1]}
12... Nxe5 {[%clk 0:02:17.1]} 13. Be3 {[%clk 0:02:16]} 13... Bxd5 {[%clk
0:02:01.2]} 14. cxd5 {[%clk 0:02:07.7]} 14... Rb8 {[%clk 0:01:46]} 15. Be2
{[%clk 0:01:58]} 15... b5 {[%clk 0:01:45.7]} 16. f4 {[%clk 0:01:53.6]} 16... Nc4
{[%clk 0:01:34]} 17. Bxc4 {[%clk 0:01:53]} 17... bxc4 {[%clk 0:01:34.5]} 18. e5
{[%clk 0:01:47.1]} 18... Rxb2 {[%clk 0:01:22.4]} 19. Rc1 {[%clk 0:01:30.7]}
19... dxe5 {[%clk 0:00:48.4]} 20. Bxc5 {[%clk 0:01:25.3]} 20... Re8 {[%clk
0:00:47.8]} 21. Rxc4 {[%clk 0:01:11.2]} 21... Qa5 {[%clk 0:00:31.7]} 22. Qa4
{[%clk 0:00:38]} 22... Qxa4 {[%clk 0:00:31.5]} 23. Rxa4 {[%clk 0:00:37.4]} 23...
exf4 {[%clk 0:00:32.1]} 24. Rxa7 {[%clk 0:00:31.4]} 24... h5 {[%clk 0:00:20.1]}
25. d6 {[%clk 0:00:30.3]} 25... Ree2 {[%clk 0:00:19.4]} 26. Rf2 {[%clk
0:00:26.3]} 26... Rxf2 {[%clk 0:00:16.5]} 27. Bxf2 {[%clk 0:00:25.1]} 27... Rd2
{[%clk 0:00:16.8]} 28. d7 {[%clk 0:00:22.9]} 28... Bf6 {[%clk 0:00:15.4]} 29. a4
{[%clk 0:00:20.1]} 29... Kg7 {[%clk 0:00:14]} 30. a5 {[%clk 0:00:19.8]} 30... g5
{[%clk 0:00:10.4]} 31. a6 {[%clk 0:00:13.6]} 31... g4 {[%clk 0:00:11]} 32. hxg4
{[%clk 0:00:13.4]} 32... hxg4 {[%clk 0:00:11.9]} 33. Kf1 {[%clk 0:00:12.6]}
33... g3 {[%clk 0:00:11.7]} 34. Bb6 {[%clk 0:00:11.1]} 34... f3 {[%clk
0:00:09.9]} 35. gxf3 {[%clk 0:00:08.5]} 35... Rd6 {[%clk 0:00:08.3]} 36. Rb7
{[%clk 0:00:06.9]} 36... Rd1+ {[%clk 0:00:02.9]} 37. Kg2 {[%clk 0:00:06.7]}
37... Ra1 {[%clk 0:00:03.2]} 38. a7 {[%clk 0:00:04.1]} 38... Ra2+ {[%clk
0:00:01.6]} 39. Kg1 {[%clk 0:00:02.1]} 39... Ra1+ {[%clk 0:00:01.2]} 40. Kg2
{[%clk 0:00:02.3]} 40... Ra2+ {[%clk 0:00:01.9]} 41. Kxg3 {[%clk 0:00:01.1]}
41... Be5+ {[%clk 0:00:02.5]} 42. Kg4 {[%clk 0:00:01.1]} 42... Bf6 {[%clk
0:00:03.4]} 0-1

[Event "*** Titled Tuesday Blitz"]
[Site "Chess.com"]
[Date "2021.02.16"]
[Round "1"]
[White "FredyMatsuura"]
[Black "markowskitomasz"]
[Result "1/2-1/2"]
[WhiteElo "2289"]
[BlackElo "2583"]
[TimeControl "180+1"]
[EndTime "10:07:44 PST"]
[Termination "Game drawn by repetition"]

1. d4 {[%clk 0:03:00.9]} 1... Nf6 {[%clk 0:02:58.6]} 2. c4 {[%clk 0:03:00.4]}
2... g6 {[%clk 0:02:57.4]} 3. Nc3 {[%clk 0:02:59.8]} 3... Bg7 {[%clk 0:02:57.6]}
4. e4 {[%clk 0:02:58.9]} 4... O-O {[%clk 0:02:57.7]} 5. Be2 {[%clk 0:02:59.3]}
5... c6 {[%clk 0:02:57.5]} 6. e5 {[%clk 0:02:54.2]} 6... Ne8 {[%clk 0:02:56.8]}
7. Nf3 {[%clk 0:02:54.4]} 7... d6 {[%clk 0:02:56.4]} 8. O-O {[%clk 0:02:50.2]}
8... Bg4 {[%clk 0:02:54.7]} 9. Bf4 {[%clk 0:02:46.6]} 9... Nd7 {[%clk
0:02:52.5]} 10. exd6 {[%clk 0:02:42.7]} 10... Nxd6 {[%clk 0:02:50.4]} 11. Ne5
{[%clk 0:02:34.1]} 11... Bxe2 {[%clk 0:02:36.8]} 12. Qxe2 {[%clk 0:02:33.6]}
12... Nf5 {[%clk 0:02:32.9]} 13. Rad1 {[%clk 0:02:30.6]} 13... Nb6 {[%clk
0:02:29.9]} 14. Qe4 {[%clk 0:01:59]} 14... e6 {[%clk 0:02:24.4]} 15. b3 {[%clk
0:01:55.2]} 15... a5 {[%clk 0:02:21.3]} 16. a4 {[%clk 0:01:43.3]} 16... Re8
{[%clk 0:02:19.4]} 17. Rd3 {[%clk 0:01:39.8]} 17... Qe7 {[%clk 0:02:13.8]} 18.
Rfd1 {[%clk 0:01:39]} 18... Rad8 {[%clk 0:02:12.3]} 19. g4 {[%clk 0:01:37.3]}
19... Nd6 {[%clk 0:02:04.7]} 20. Qg2 {[%clk 0:01:31.4]} 20... Nd7 {[%clk
0:01:53.9]} 21. Qg3 {[%clk 0:01:28.9]} 21... Nc8 {[%clk 0:01:43.8]} 22. h3
{[%clk 0:01:24.5]} 22... Ncb6 {[%clk 0:01:36.1]} 23. Ne4 {[%clk 0:01:22.8]}
23... f5 {[%clk 0:01:22.5]} 24. Bg5 {[%clk 0:01:14.5]} 24... Nf6 {[%clk
0:01:17.4]} 25. Nc5 {[%clk 0:01:12.6]} 25... Rb8 {[%clk 0:00:49]} 26. Qh4 {[%clk
0:01:10.6]} 26... Qf8 {[%clk 0:00:47.9]} 27. f3 {[%clk 0:01:04.4]} 27... h6
{[%clk 0:00:38.4]} 28. Bc1 {[%clk 0:01:03.7]} 28... g5 {[%clk 0:00:37.8]} 29.
Qf2 {[%clk 0:01:01.8]} 29... Qe7 {[%clk 0:00:31.2]} 30. Re1 {[%clk 0:00:58]}
30... Nbd7 {[%clk 0:00:28]} 31. Ncxd7 {[%clk 0:00:48.9]} 31... Nxd7 {[%clk
0:00:27.9]} 32. gxf5 {[%clk 0:00:45.7]} 32... exf5 {[%clk 0:00:23.5]} 33. Bb2
{[%clk 0:00:36.7]} 33... Nxe5 {[%clk 0:00:21.3]} 34. dxe5 {[%clk 0:00:36.5]}
34... Rbd8 {[%clk 0:00:20.1]} 35. Red1 {[%clk 0:00:36.6]} 35... Rxd3 {[%clk
0:00:19.5]} 36. Rxd3 {[%clk 0:00:37]} 36... f4 {[%clk 0:00:18.4]} 37. Rd6 {[%clk
0:00:34.1]} 37... Rd8 {[%clk 0:00:12.6]} 38. Qd2 {[%clk 0:00:30]} 38... Rxd6
{[%clk 0:00:07]} 39. exd6 {[%clk 0:00:29.9]} 39... Qd7 {[%clk 0:00:06.8]} 40.
Bxg7 {[%clk 0:00:29.6]} 40... Kxg7 {[%clk 0:00:07.7]} 41. c5 {[%clk 0:00:29.5]}
41... Kf7 {[%clk 0:00:06.4]} 42. Qd3 {[%clk 0:00:28.7]} 42... Kf6 {[%clk
0:00:04.1]} 43. Qd4+ {[%clk 0:00:27.8]} 43... Kf7 {[%clk 0:00:03.9]} 44. Qh8
{[%clk 0:00:27.2]} 44... Qxh3 {[%clk 0:00:02.9]} 45. Qh7+ {[%clk 0:00:27.3]}
45... Ke6 {[%clk 0:00:02.4]} 46. Qe7+ {[%clk 0:00:26.7]} 46... Kd5 {[%clk
0:00:02.9]} 47. d7 {[%clk 0:00:22.3]} 47... Qg3+ {[%clk 0:00:03.3]} 48. Kh1
{[%clk 0:00:22.4]} 48... Qxf3+ {[%clk 0:00:04.2]} 49. Kg1 {[%clk 0:00:22.8]}
49... Qg3+ {[%clk 0:00:04.7]} 50. Kh1 {[%clk 0:00:23.2]} 50... Qf3+ {[%clk
0:00:04.7]} 51. Kg1 {[%clk 0:00:23.7]} 51... Qg3+ {[%clk 0:00:05]} 52. Kh1
{[%clk 0:00:24.1]} 52... Qf3+ {[%clk 0:00:05.4]} 1/2-1/2

[Event "*** Titled Tuesday Blitz"]
[Site "Chess.com"]
[Date "2021.02.16"]
[Round "1"]
[White "Skatchkov_V"]
[Black "DarZay"]
[Result "1-0"]
[WhiteElo "2516"]
[BlackElo "2158"]
[TimeControl "180+1"]
[EndTime "10:07:44 PST"]
[Termination "Skatchkov_V won on time"]

1. d4 {[%clk 0:02:55.8]} 1... d5 {[%clk 0:02:59.5]} 2. c4 {[%clk 0:02:56]} 2...
e6 {[%clk 0:02:58.5]} 3. Nf3 {[%clk 0:02:56.4]} 3... Be7 {[%clk 0:02:56.6]} 4.
Nc3 {[%clk 0:02:56.4]} 4... Nf6 {[%clk 0:02:56.1]} 5. Bf4 {[%clk 0:02:56.5]}
5... O-O {[%clk 0:02:51.7]} 6. e3 {[%clk 0:02:56.8]} 6... c5 {[%clk 0:02:50.9]}
7. dxc5 {[%clk 0:02:53.5]} 7... Bxc5 {[%clk 0:02:50.2]} 8. Qc2 {[%clk
0:02:53.6]} 8... Nc6 {[%clk 0:02:47.6]} 9. Rd1 {[%clk 0:02:51.1]} 9... Qa5
{[%clk 0:02:41.3]} 10. a3 {[%clk 0:02:50.8]} 10... Ne4 {[%clk 0:02:34.2]} 11.
cxd5 {[%clk 0:02:50.8]} 11... exd5 {[%clk 0:02:26.6]} 12. Bd3 {[%clk 0:02:36.1]}
12... Nxc3 {[%clk 0:02:11.1]} 13. bxc3 {[%clk 0:02:36.9]} 13... Bxa3 {[%clk
0:02:04.8]} 14. Ra1 {[%clk 0:02:27.1]} 14... Qc5 {[%clk 0:01:58.8]} 15. Qb3
{[%clk 0:02:18.5]} 15... Bb4 {[%clk 0:01:43.1]} 16. cxb4 {[%clk 0:02:17.3]}
16... Nxb4 {[%clk 0:01:42.5]} 17. O-O {[%clk 0:02:13.6]} 17... Bg4 {[%clk
0:01:40.5]} 18. Rfc1 {[%clk 0:02:11.9]} 18... Qe7 {[%clk 0:01:37]} 19. Rc7
{[%clk 0:02:08.5]} 19... Qf6 {[%clk 0:01:31.5]} 20. Be5 {[%clk 0:02:07.3]} 20...
Qb6 {[%clk 0:01:31.5]} 21. Ng5 {[%clk 0:01:56.3]} 21... f6 {[%clk 0:01:05.5]}
22. Nxh7 {[%clk 0:01:02.2]} 22... fxe5 {[%clk 0:00:50.9]} 23. Nxf8 {[%clk
0:01:01.1]} 23... Rxf8 {[%clk 0:00:49.8]} 24. Rcc1 {[%clk 0:00:50.8]} 24... e4
{[%clk 0:00:43.8]} 25. Bxe4 {[%clk 0:00:50]} 25... a5 {[%clk 0:00:35.1]} 26.
Bxd5+ {[%clk 0:00:48.3]} 26... Nxd5 {[%clk 0:00:34.1]} 27. Qxd5+ {[%clk
0:00:49.2]} 27... Be6 {[%clk 0:00:33.9]} 28. Qxa5 {[%clk 0:00:44.3]} 28... Qb2
{[%clk 0:00:32.5]} 29. Qe1 {[%clk 0:00:35.5]} 29... Bd5 {[%clk 0:00:28.6]} 30.
Rab1 {[%clk 0:00:30.8]} 30... Qe5 {[%clk 0:00:27.8]} 31. f3 {[%clk 0:00:28.9]}
31... Qg5 {[%clk 0:00:24.4]} 32. e4 {[%clk 0:00:29]} 32... Bc6 {[%clk
0:00:18.3]} 33. Qf2 {[%clk 0:00:18.6]} 33... Bxe4 {[%clk 0:00:15.9]} 34. Rc5
{[%clk 0:00:10.3]} 34... Qg6 {[%clk 0:00:10.2]} 35. Rb3 {[%clk 0:00:08.5]} 35...
Qd6 {[%clk 0:00:05.9]} 36. Rc1 {[%clk 0:00:07.5]} 36... Qd5 {[%clk 0:00:03.5]}
37. fxe4 {[%clk 0:00:06]} 37... Qxb3 {[%clk 0:00:02.3]} 38. Qd4 {[%clk
0:00:05.2]} 1-0